fUSD/lending_fUSD_20251001
["ID","MTS","AMOUNT","RATE_DAILY","PERIOD"]
[388720061,1759334729274,150.0,0.0001553,2]
[388720062,1759334729322,150.0,0.00015773,2]
[388720063,1759334729395,150.0,0.00016016,2]
[388720064,1759334729436,150.0,0.00016258,2]
[388720065,1759334729568,150.0,0.00016501,2]
[388720066,1759334733084,150.0,0.00015288,2]
[388720067,1759334733138,150.0,0.00015476,2]
[388720068,1759334733206,150.0,0.00015665,2]
[388720069,1759334733272,150.0,0.00015854,2]
[388720070,1759334733344,150.0,0.00016043,2]
[388720071,1759334733418,150.0,0.00016231,2]
[388720072,1759334733485,150.0,0.0001642,2]
[388720073,1759334739530,150.0,0.00015288,2]
[388720074,1759334739574,150.0,0.00015571,2]
[388720075,1759334739656,150.0,0.00015854,2]
[388720076,1759334739704,150.0,0.00016137,2]
[388720077,1759334739768,150.0,0.0001642,2]
[388720078,1759334751514,5106.38,0.00015896,2]
[388720088,1759334927751,316.58,0.00015859,2]
[388720108,1759335032116,-194.39943741,0.00016603,2]
[388720109,1759335032126,-300.0,0.00016606,2]
[388720110,1759335032136,-150.0,0.00016609,2]
[388720111,1759335032145,-150.0,0.00016647,2]
[388720112,1759335032154,-150.0,0.00016647,2]
[388720113,1759335032164,-150.0,0.00016647,2]
[388720114,1759335032173,-150.0,0.00016647,2]
[388720115,1759335032182,-150.0,0.00016647,2]
[388720116,1759335032191,-316.58,0.00016652,2]
[388720117,1759335032201,-223.5971723,0.00016682,2]
[388720118,1759335032212,-292.4028277,0.00016682,2]
[388720119,1759335032222,-300.0,0.00016691,2]
[388720120,1759335032232,-500.0,0.000167,2]
[388720121,1759335032242,-150.0,0.00016703,2]
[388720122,1759335032252,-150.0,0.00016703,2]
[388720123,1759335032263,-11.44442835,0.00016744,2]
[388720124,1759335032436,-138.55557165,0.00016744,2]
[388720125,1759335032446,-150.0,0.00016744,2]
[388720126,1759335032456,-168.0,0.00016746,2]
[388720127,1759335032466,-150.0,0.0001676,2]
[388720128,1759335032475,-108.73956095,0.00016767,2]
[388720129,1759335032487,-250.26043905,0.00016767,2]
[388720130,1759335032496,-168.0,0.00016786,2]
[388720131,1759335032505,-150.0,0.00016798,2]
[388720132,1759335032515,-300.0,0.00016799,2]
[388720133,1759335032525,-1200.0,0.00016799,2]
[388720134,1759335032534,-2500.0,0.000168,2]
[388720135,1759335032543,-1731.35559159,0.000168,2]
[388720137,1759335032553,-150.0,0.00016816,2]
[388720138,1759335032562,-150.0,0.00016816,2]
[388720140,1759335032571,-516.0,0.0001682,2]
[388720141,1759335032581,-150.0,0.00016845,2]
[388720142,1759335032591,-835.79570415,0.00016849,2]
[388720143,1759335032600,-8882.6885148,0.00016862,2]
[388720144,1759335032611,-550.0,0.00016873,2]
[388720145,1759335032621,-150.0,0.00016873,2]
[388720146,1759335032631,-516.0,0.00016886,2]
[388720147,1759335032640,-16559.58636992,0.0001689,2]
[388720148,1759335032650,-160.31476388,0.0001689,2]
[388720149,1759335032659,-1226.57740462,0.0001689,2]
[388720151,1759335032669,-16559.58636987,0.00016891,2]
[388720153,1759335032678,-16559.58636987,0.00016892,2]
[388720155,1759335032688,-16559.58636987,0.00016893,2]
[388720157,1759335032698,-16559.58636987,0.00016894,2]
[388720159,1759335032708,-16559.58636987,0.00016896,2]
[388720161,1759335032717,-500.0,0.00016896,2]
[388720163,1759335032726,-500.0,0.00016896,2]
[388720165,1759335032736,-500.0,0.00016896,2]
[388720168,1759335032745,-422.4061693,0.00016896,2]
[388720170,1759335032754,-497.36703517,0.00016896,2]
[388720172,1759335032763,-500.0,0.00016896,2]
[388720174,1759335032773,-500.0,0.00016896,2]
[388720176,1759335032782,-244.21344638,0.00016896,2]
[388720177,1759335032791,-79.40115866,0.00016896,2]
[388720181,1759335032811,-420.59884134,0.00016896,2]
[388720183,1759335032825,-500.0,0.00016896,2]
[388720185,1759335032834,-678.92,0.00016896,2]
[388720187,1759335032843,-2794.62,0.00016896,2]
[388720189,1759335032853,-3638.9132331,0.00016897,2]
[388720191,1759335032864,-3676.93591463,0.00016897,2]
[388720193,1759335032877,-9243.73722214,0.00016897,2]
[388720195,1759335032886,-16559.58636987,0.00016898,2]
[388720197,1759335032896,-16559.58636987,0.00016899,2]
[388720199,1759335032907,-1000.0,0.000169,2]
[388720201,1759335032917,-304.2757,0.000169,2]
[388720203,1759335032926,-16559.58636987,0.000169,2]
[388720205,1759335032936,-1366.47669405,0.000169,2]
[388720207,1759335032945,-246.75681768,0.000169,2]
[388720209,1759335032955,-727.551,0.00016917,2]
[388720211,1759335032964,-9211.34798985,0.00016917,2]
[388720213,1759335032973,-174.685,0.00016924,2]
[388720215,1759335032982,-231.73,0.00016941,2]
[388720217,1759335032991,-200.0,0.00016962,2]
[388720219,1759335033001,-210.00811648,0.00016962,2]
[388720221,1759335033010,-500.0,0.00016962,2]
[388720223,1759335033019,-500.0,0.00016962,2]
[388720225,1759335033028,-454.93264243,0.00016962,2]
[388720227,1759335033038,-151.0,0.00016962,2]
[388720229,1759335033047,-151.0,0.00016962,2]
[388720231,1759335033056,-300.47221972,0.00016962,2]
[388720233,1759335033066,-203.57323302,0.00016962,2]
[388720235,1759335033076,-195.0,0.00016972,2]
[388720237,1759335033088,-2500.0,0.00016972,2]
[388720239,1759335033098,-9552.16786547,0.00016972,2]
[388720241,1759335033107,-500.0,0.00016973,2]
[388720243,1759335033117,-500.0,0.00016973,2]
[388720245,1759335033127,-500.0,0.00016973,2]
[388720248,1759335033136,-503.00022289,0.00016973,2]
[388720250,1759335033145,-500.0,0.00016973,2]
[388720251,1759335033155,-500.0,0.00016973,2]
[388720253,1759335033165,-168.0,0.00016979,2]
[388720256,1759335033175,-297.4649599,0.0001698,2]
[388720258,1759335033185,-11364.07342638,0.00016986,2]
[388720259,1759335033194,-150.0,0.00016986,2]
[388720261,1759335033203,-150.0,0.00016986,2]
[388720264,1759335033212,-150.0,0.00016986,2]
[388720266,1759335033222,-150.0,0.00016986,2]
[388720268,1759335033231,-150.0,0.00016986,2]
[388720270,1759335033241,-150.0,0.00016986,2]
[388720272,1759335033250,-150.0,0.00016986,2]
[388720274,1759335033260,-150.0,0.00016986,2]
[388720276,1759335033269,-150.0,0.00016986,2]
[388720336,1759335033801,-150.0,0.00016986,2]
[388720339,1759335033823,-150.0,0.00016986,2]
[388720341,1759335033832,-150.0,0.00016986,2]
[388720343,1759335033842,-1000.0,0.00016989,2]
[388720345,1759335033851,-300.0,0.00016989,2]
[388720347,1759335033863,-666.0,0.00016989,2]
[388720349,1759335033872,-500.0,0.00016989,2]
[388720351,1759335033882,-300.0,0.00016989,2]
[388720353,1759335033894,-382.98048596,0.00016989,2]
[388720355,1759335033904,-500.0,0.00016989,2]
[388720357,1759335033913,-451.49820414,0.00016989,2]
[388720359,1759335033923,-515.92863787,0.00016989,2]
[388720362,1759335033934,-513.50325056,0.00016989,2]
[388720364,1759335033944,-500.0,0.00016989,2]
[388720366,1759335033953,-42625.00128679,0.0001699,2]
[388720368,1759335033964,-39462.13978892,0.0001699,3]
[388720370,1759335033976,-25833.74096085,0.0001699,3]
[388720762,1759335037838,-495.1497182,0.0001699,3]
[388720776,1759335037949,-30625.23964,0.0001699,3]
[388720789,1759335038056,-364.73999997,0.0001699,3]
[388720791,1759335038069,-505.47,0.0001699,3]
[388720802,1759335038167,-686.79458777,0.0001699,3]
[388721014,1759335040325,-103793.17668031,0.0001699,3]
[388721017,1759335040336,-373.5644,0.0001699,3]
[388721022,1759335040379,-1434.67340014,0.0001699,3]
[388721024,1759335040390,-1747.3637243,0.0001699,3]
[388721027,1759335040402,-8059.21252599,0.0001699,3]
[388721029,1759335040413,-770.289584,0.0001699,3]
[388721032,1759335040425,-2102.022559,0.0001699,3]
[388721035,1759335040436,-2033.69999999,0.0001699,3]
[388721038,1759335040449,-909.21,0.0001699,3]
[388721052,1759335040544,-1245.45841385,0.0001699,3]
[388721322,1759335043111,-880.79293202,0.000169,2]
[388721324,1759335043123,-335.99773728,0.000169,2]
[388721326,1759335043132,-723.56760949,0.0001699,3]
[388721328,1759335043143,-335.04991627,0.0001699,3]
[388721337,1759335043223,-12401.58257869,0.0001699,3]
[388721339,1759335043234,-489.29187735,0.0001699,3]
[388721341,1759335043246,-1387.83201244,0.0001699,3]
[388721362,1759335043484,-1429.57753364,0.0001699,3]
[388721584,1759335045977,-4816.99660529,0.00016988,2]
[388721586,1759335045988,-639.22380711,0.00016988,2]
[388721598,1759335046084,-2949.84516948,0.00016988,2]
[388721610,1759335046194,-6635.98548903,0.00016988,2]
[388721613,1759335046206,-1330.47236798,0.00016988,2]
[388723299,1759335063751,550.78,0.00030136,120]
[388723873,1759335089663,250.0,0.00016595,2]
[388723890,1759335231144,200.0,0.00015993,2]
[388723893,1759335342448,230.3,0.00015982,2]
[388723894,1759335409701,1119.82,0.00015984,2]
[388723895,1759335434527,666.0,0.00015977,3]
[388723896,1759335443369,150.0,0.000113,2]
[388723897,1759335443778,150.0,0.0001248,2]
[388723898,1759335444128,150.0,0.0001367,2]
[388723899,1759335444501,150.0,0.0001485,2]
[388723900,1759335444853,150.0,0.0001603,2]
[388723917,1759335562532,164.26,0.00015957,2]
[388723921,1759335587229,214.77,0.00025,60]
[388723926,1759335650830,527.84,0.00030136,120]
[388723934,1759335847727,315.59,0.00015929,2]
[388723944,1759335905210,176.03,0.00015932,2]
[388723946,1759335910581,150.0,0.00015288,2]
[388723947,1759335914258,150.0,0.00015288,2]
[388723953,1759335933312,150.0,0.00015288,2]
[388723954,1759335933425,150.0,0.00015288,2]
[388723955,1759335934929,150.0,0.00015288,2]
[388723959,1759335958185,150.0,0.000113,2]
[388723960,1759335958537,150.0,0.0001248,2]
[388723961,1759335958912,150.0,0.0001367,2]
[388723962,1759335959316,150.0,0.0001485,2]
[388723964,1759335959716,200.0,0.0001603,2]
[388723967,1759335968351,189.94,0.00015931,2]
[388723973,1759335998391,807.1,0.00015928,2]
[388723987,1759336050397,38249.0,0.0003013,120]
[388724026,1759336122598,5051.49051092,0.00015,2]
[388724037,1759336180187,566.0,0.00016426,2]
[388724038,1759336183758,200.0,0.000162,5]
[388724039,1759336185533,500.0,0.000163,5]
[388724040,1759336185760,566.0,0.0001643,2]
[388724043,1759336187661,800.0,0.000164,5]
[388724044,1759336190111,1100.0,0.000165,6]
[388724045,1759336191954,1400.0,0.000166,6]
[388724047,1759336206175,566.0,0.00016278,2]
[388724049,1759336216453,566.0,0.00016293,2]
[388724087,1759336232028,-566.0,0.00016623,2]
[388724089,1759336232038,-146.8644652,0.000167,6]
[388724090,1759336232212,-53.1355348,0.000167,6]
[388724091,1759336232222,-566.0,0.00016725,2]
[388724092,1759336232232,-189.94,0.00016727,2]
[388724093,1759336232242,-168.0,0.00016764,2]
[388724094,1759336232254,-190.69276947,0.00016775,2]
[388724095,1759336232267,-257.27949995,0.00016775,2]
[388724096,1759336232280,-309.2010003,0.00016775,2]
[388724097,1759336232291,-1297.00237653,0.00016775,2]
[388724098,1759336232301,-283.65365368,0.00016779,2]
[388724099,1759336232314,-1716.34634632,0.00016779,2]
[388724100,1759336232323,-192.18665368,0.00016784,2]
[388724101,1759336232371,-401.08012471,0.00016784,2]
[388724102,1759336232383,-831.73322161,0.00016784,2]
[388724103,1759336232393,-200.0,0.000168,6]
[388724104,1759336232403,-150.0,0.00016827,2]
[388724105,1759336232413,-566.0,0.00016844,2]
[388724106,1759336232423,-1200.0,0.00016867,2]
[388724107,1759336232432,-1425.0,0.00016869,2]
[388724108,1759336232441,-2054.17564625,0.00016873,2]
[388724109,1759336232451,-550.0,0.00016874,2]
[388724110,1759336232461,-151.0,0.00016875,2]
[388724111,1759336232471,-500.0,0.00016875,2]
[388724112,1759336232480,-151.0,0.00016875,2]
[388724113,1759336232491,-500.0,0.00016875,2]
[388724114,1759336232501,-1071.17495066,0.00016875,2]
[388724115,1759336232514,-702.73856019,0.00016875,2]
[388724124,1759336237931,-7108.77500395,0.00016875,2]
[388724125,1759336237941,-670.58624095,0.00016875,2]
[388724126,1759336237951,-500.0,0.00016875,2]
[388724127,1759336237961,-500.0,0.00016875,2]
[388724128,1759336237971,-151.0,0.00016875,2]
[388724129,1759336237980,-500.0,0.00016875,2]
[388724130,1759336237990,-151.0,0.00016875,2]
[388724131,1759336237999,-378.04161576,0.00016875,2]
[388724132,1759336238009,-151.0,0.00016875,2]
[388724133,1759336238019,-151.0,0.00016875,2]
[388724134,1759336238029,-151.0,0.00016875,2]
[388724135,1759336238038,-3000.0,0.00016875,2]
[388724136,1759336238048,-257.56651002,0.00016875,2]
[388724137,1759336238058,-319.31621577,0.00016875,2]
[388724138,1759336238068,-322.6107,0.00016875,2]
[388724139,1759336238078,-500.0,0.00016875,2]
[388724140,1759336238087,-500.0,0.00016875,2]
[388724141,1759336238097,-500.0,0.00016875,2]
[388724142,1759336238106,-500.0,0.00016875,2]
[388724143,1759336238116,-200.0,0.00016875,2]
[388724144,1759336238125,-500.0,0.00016875,2]
[388724145,1759336238135,-500.0,0.00016875,2]
[388724146,1759336238144,-500.0,0.00016875,2]
[388724147,1759336238154,-500.0,0.00016875,2]
[388724148,1759336238164,-332.18008195,0.00016875,2]
[388724149,1759336238173,-500.0,0.00016875,2]
[388724150,1759336238184,-500.0,0.00016875,2]
[388724151,1759336238196,-500.0,0.00016875,2]
[388724152,1759336238205,-500.0,0.00016875,2]
[388724153,1759336238215,-151.0,0.00016875,2]
[388724154,1759336238227,-500.0,0.00016875,2]
[388724155,1759336238237,-500.0,0.00016875,2]
[388724156,1759336238247,-500.0,0.00016875,2]
[388724157,1759336238256,-500.0,0.00016875,2]
[388724159,1759336238268,-644.79446246,0.00016875,2]
[388724160,1759336238279,-500.0,0.00016875,2]
[388724162,1759336238288,-200.0,0.00016875,2]
[388724164,1759336238298,-257.91778498,0.00016875,2]
[388724166,1759336238308,-221.71339056,0.00016875,2]
[388724169,1759336238318,-211.96288243,0.00016877,2]
[388724171,1759336238328,-1000.0,0.00016884,2]
[388724174,1759336238338,-1425.0,0.00016887,2]
[388724176,1759336238348,-164.95400325,0.0001689,2]
[388724180,1759336238358,-349.78927013,0.0001689,2]
[388724181,1759336238368,-531.88255464,0.0001689,2]
[388724183,1759336238377,-531.88255458,0.00016891,2]
[388724185,1759336238387,-1000.0,0.00016896,2]
[388724188,1759336238397,-200.0,0.000169,6]
[388724189,1759336238407,-701.12650378,0.00016902,2]
[388724192,1759336238418,-566.0,0.00016905,2]
[388724193,1759336238427,-1425.0,0.00016917,2]
[388724194,1759336238437,-150.0,0.00016918,2]
[388724195,1759336238447,-566.0,0.00016921,2]
[388724196,1759336238458,-9211.34798985,0.0001693,2]
[388724197,1759336238469,-582.041,0.00016934,2]
[388724198,1759336238479,-5153.84693825,0.00016937,2]
[388724199,1759336238488,-349.7892701,0.00016937,2]
[388724200,1759336238498,-1000.0,0.00016939,2]
[388724201,1759336238507,-500.0,0.00016973,2]
[388724202,1759336238517,-500.0,0.00016973,2]
[388724203,1759336238527,-500.0,0.00016973,2]
[388724204,1759336238537,-797.63,0.00016978,2]
[388724205,1759336238546,-2678.18,0.00016978,2]
[388724206,1759336238556,-1425.0,0.00016978,2]
[388724207,1759336238565,-349.7892701,0.00016984,2]
[388724208,1759336238576,-9552.16786547,0.00016985,2]
[388724209,1759336238585,-150.0,0.00016986,2]
[388724210,1759336238595,-35725.49969401,0.00016988,2]
[388724211,1759336238604,-151.0,0.00016988,2]
[388724212,1759336238614,-150.0,0.00016989,2]
[388724213,1759336238623,-500.0,0.00016989,2]
[388724214,1759336238632,-500.0,0.00016989,2]
[388724215,1759336238642,-500.0,0.00016989,2]
[388724216,1759336238651,-500.0,0.00016989,2]
[388724217,1759336238660,-408.12982248,0.00016989,2]
[388724218,1759336238669,-500.0,0.00016989,2]
[388724219,1759336238679,-500.0,0.00016989,2]
[388724220,1759336238689,-500.0,0.00016989,2]
[388724221,1759336238698,-500.0,0.00016989,2]
[388724222,1759336238709,-1000.0,0.00016989,2]
[388724223,1759336238718,-300.0,0.00016989,2]
[388724224,1759336238728,-1186.5753389,0.00016989,5]
[388724225,1759336238738,-7867.4218148,0.00016989,2]
[388724226,1759336238747,-416.45095014,0.00016989,2]
[388724227,1759336238757,-25792.11580759,0.0001699,2]
[388724228,1759336238767,-909583.21612937,0.0001699,3]
[388724229,1759336238777,-370.35923647,0.0001699,3]
[388724230,1759336238786,-5651.9169188,0.0001699,2]
[388724231,1759336238796,-151.0,0.0001699,2]
[388724232,1759336238805,-151.0,0.0001699,2]
[388724233,1759336238815,-152.604645,0.0001699,2]
[388724234,1759336238824,-151.0,0.0001699,2]
[388724235,1759336238834,-151.0,0.0001699,2]
[388724236,1759336238844,-151.0,0.0001699,2]
[388724237,1759336238855,-151.0,0.0001699,2]
[388724238,1759336238865,-151.0,0.0001699,2]
[388724239,1759336238875,-151.0,0.0001699,2]
[388724240,1759336238886,-151.0,0.0001699,2]
[388724241,1759336238896,-151.0,0.0001699,2]
[388724242,1759336238906,-151.0,0.0001699,2]
[388724243,1759336238916,-151.0,0.0001699,2]
[388724244,1759336238926,-151.0,0.0001699,2]
[388724245,1759336238936,-151.0,0.0001699,2]
[388724246,1759336238946,-151.0,0.0001699,2]
[388724247,1759336238957,-151.0,0.0001699,2]
[388724248,1759336238966,-23.99007888,0.0001699,2]
[388724249,1759336238979,-127.00992112,0.0001699,2]
[388724250,1759336238989,-151.0,0.0001699,2]
[388724251,1759336238999,-176.256432,0.0001699,2]
[388724252,1759336239009,-151.0,0.0001699,2]
[388724253,1759336239018,-151.0,0.0001699,2]
[388724254,1759336239027,-151.0,0.0001699,2]
[388724255,1759336239037,-151.0,0.0001699,2]
[388724256,1759336239047,-151.0,0.0001699,2]
[388724257,1759336239057,-167.039069,0.0001699,2]
[388724258,1759336239066,-151.0,0.0001699,2]
[388724259,1759336239076,-151.0,0.0001699,2]
[388724260,1759336239086,-151.0,0.0001699,2]
[388724261,1759336239095,-151.0,0.0001699,2]
[388724262,1759336239105,-151.0,0.0001699,2]
[388724263,1759336239115,-151.0,0.0001699,2]
[388724264,1759336239125,-90.84525568,0.0001699,2]
[388724265,1759336239172,-71.23147232,0.0001699,2]
[388724266,1759336239182,-151.0,0.0001699,2]
[388724267,1759336239197,-151.0,0.0001699,2]
[388724268,1759336239207,-151.0,0.0001699,2]
[388724269,1759336239217,-151.0,0.0001699,2]
[388724270,1759336239228,-107.31195264,0.0001699,2]
[388724271,1759336239240,-43.68804736,0.0001699,2]
[388724272,1759336239251,-151.0,0.0001699,2]
[388724273,1759336239261,-151.0,0.0001699,2]
[388724274,1759336239270,-100.80195264,0.0001699,2]
[388724275,1759336239293,-50.19804736,0.0001699,2]
[388724276,1759336239303,-151.0,0.0001699,2]
[388724277,1759336239313,-151.0,0.0001699,2]
[388724278,1759336239322,-151.0,0.0001699,2]
[388724279,1759336239331,-151.0,0.0001699,2]
[388724280,1759336239340,-151.0,0.0001699,2]
[388724281,1759336239349,-151.0,0.0001699,2]
[388724282,1759336239359,-151.0,0.0001699,2]
[388724283,1759336239368,-151.0,0.0001699,2]
[388724284,1759336239377,-191.398564,0.0001699,2]
[388724285,1759336239387,-151.0,0.0001699,2]
[388724286,1759336239396,-191.398564,0.0001699,2]
[388724287,1759336239406,-191.398564,0.0001699,2]
[388724288,1759336239416,-191.398564,0.0001699,2]
[388724289,1759336239426,-151.0,0.0001699,2]
[388724290,1759336239435,-215.28687385,0.0001699,2]
[388724291,1759336239445,-151.0,0.0001699,2]
[388724292,1759336239455,-151.0,0.0001699,2]
[388724293,1759336239464,-151.0,0.0001699,2]
[388724294,1759336239474,-151.0,0.0001699,2]
[388724295,1759336239484,-157.913091,0.0001699,2]
[388724296,1759336239494,-151.0,0.0001699,2]
[388724297,1759336239504,-151.0,0.0001699,2]
[388724298,1759336239513,-151.0,0.0001699,2]
[388724299,1759336239522,-151.0,0.0001699,2]
[388724300,1759336239532,-151.0,0.0001699,2]
[388724301,1759336239541,-151.0,0.0001699,2]
[388724302,1759336239550,-151.0,0.0001699,2]
[388724303,1759336239559,-151.0,0.0001699,2]
[388724304,1759336239568,-151.0,0.0001699,2]
[388724305,1759336239578,-151.0,0.0001699,2]
[388724306,1759336239587,-151.0,0.0001699,2]
[388724307,1759336239596,-151.0,0.0001699,2]
[388724308,1759336239606,-151.0,0.0001699,2]
[388724309,1759336239615,-151.0,0.0001699,2]
[388724310,1759336239624,-151.0,0.0001699,2]
[388724311,1759336239634,-1920.739657,0.0001699,2]
[388724312,1759336239643,-1920.739657,0.0001699,2]
[388724313,1759336239653,-1920.739657,0.0001699,2]
[388724315,1759336240103,-1920.739657,0.0001699,2]
[388724316,1759336240115,-262.454413,0.0001699,2]
[388724317,1759336240125,-151.0,0.0001699,2]
[388724318,1759336240135,-262.454413,0.0001699,2]
[388724319,1759336240144,-151.0,0.0001699,2]
[388724320,1759336240153,-262.454413,0.0001699,2]
[388724321,1759336240163,-262.454413,0.0001699,2]
[388724322,1759336240173,-151.0,0.0001699,2]
[388724323,1759336240184,-151.0,0.0001699,2]
[388724324,1759336240196,-151.0,0.0001699,2]
[388724325,1759336240206,-63985.02084347,0.0001699,3]
[388724326,1759336240218,-65332.07899696,0.0001699,3]
[388724327,1759336240231,-21295.62697641,0.0001699,3]
[388724333,1759336240855,-76909.43681368,0.0001699,3]
[388724334,1759336240867,-430.03176955,0.0001699,3]
[388724335,1759336240888,-501.97000001,0.0001699,3]
[388724336,1759336240899,-4846.76196623,0.0001699,3]
[388724337,1759336240912,-601.50114901,0.0001699,3]
[388724338,1759336240929,-1388.67040378,0.0001699,3]
[388724340,1759336240968,-4053.86960975,0.0001699,3]
[388724341,1759336240979,-1417.5,0.0001699,3]
[388724342,1759336241056,-775.05809644,0.0001699,3]
[388724343,1759336241113,-1202.799999,0.0001699,3]
[388724344,1759336241124,-1695.32967665,0.0001699,3]
[388724347,1759336243052,-531.88255458,0.00016892,2]
[388724348,1759336243062,-205.3850161,0.0001699,3]
[388724349,1759336243077,-3475.78358383,0.0001699,3]
[388724350,1759336243107,-349.24300055,0.0001699,3]
[388724351,1759336243119,-464.76347741,0.0001699,3]
[388724352,1759336243216,-697841.84232593,0.0001699,3]
[388724353,1759336243279,-6924.43850967,0.0001699,3]
[388724354,1759336243291,-3652.600003,0.0001699,3]
[388724355,1759336243337,-1187473.36669022,0.0001699,3]
[388724356,1759336243393,-478.0120005,0.0001699,3]
[388724357,1759336243405,-748.0560267,0.0001699,3]
[388724358,1759336243417,-869.29442392,0.0001699,3]
[388724359,1759336243430,-399.445445,0.0001699,3]
[388724360,1759336243459,-718.43752315,0.0001699,3]
[388724368,1759336245975,-531.88255458,0.00016893,2]
[388724369,1759336245984,-44525.47350332,0.0001699,3]
[388724370,1759336245995,-1338.7516532,0.0001699,3]
[388724371,1759336246055,-150247.02457379,0.0001699,3]
[388724372,1759336246121,-542613.51799003,0.0001699,3]
[388724373,1759336246130,-252.244231,0.0001699,2]
[388724374,1759336246140,-151.0,0.0001699,2]
[388724375,1759336246150,-151.0,0.0001699,2]
[388724376,1759336246159,-151.0,0.0001699,2]
[388724377,1759336246169,-151.0,0.0001699,2]
[388724378,1759336246179,-151.0,0.0001699,2]
[388724379,1759336246192,-151.0,0.0001699,2]
[388724380,1759336246202,-151.0,0.0001699,2]
[388724381,1759336246211,-151.0,0.0001699,2]
[388724382,1759336246220,-151.0,0.0001699,2]
[388724383,1759336246231,-151.0,0.0001699,2]
[388724384,1759336246240,-151.0,0.0001699,2]
[388724385,1759336246249,-151.0,0.0001699,2]
[388724386,1759336246259,-244.786485,0.0001699,2]
[388724387,1759336246270,-151.0,0.0001699,2]
[388724388,1759336246281,-259.006444,0.0001699,2]
[388724389,1759336246290,-153.746084,0.0001699,2]
[388724390,1759336246299,-151.0,0.0001699,2]
[388724391,1759336246309,-153.746084,0.0001699,2]
[388724392,1759336246318,-151.0,0.0001699,2]
[388724393,1759336246328,-153.746084,0.0001699,2]
[388724394,1759336246337,-153.746084,0.0001699,2]
[388724395,1759336246347,-151.0,0.0001699,2]
[388724396,1759336246357,-151.0,0.0001699,2]
[388724397,1759336246366,-151.0,0.0001699,2]
[388724398,1759336246376,-151.0,0.0001699,2]
[388724399,1759336246386,-151.0,0.0001699,2]
[388724400,1759336246395,-261.0,0.0001699,2]
[388724401,1759336246404,-151.0,0.0001699,2]
[388724402,1759336246414,-151.0,0.0001699,2]
[388724403,1759336246422,-151.0,0.0001699,2]
[388724404,1759336246432,-218.368283,0.0001699,2]
[388724405,1759336246442,-151.0,0.0001699,2]
[388724406,1759336246451,-151.0,0.0001699,2]
[388724407,1759336246460,-151.0,0.0001699,2]
[388724408,1759336246470,-151.0,0.0001699,2]
[388724409,1759336246479,-151.0,0.0001699,2]
[388724410,1759336246488,-151.0,0.0001699,2]
[388724411,1759336246497,-151.0,0.0001699,2]
[388724412,1759336246508,-151.0,0.0001699,2]
[388724413,1759336246517,-258.774584,0.0001699,2]
[388724414,1759336246527,-151.0,0.0001699,2]
[388724415,1759336246537,-207.2316,0.0001699,2]
[388724416,1759336246546,-151.0,0.0001699,2]
[388724417,1759336246555,-163.96421,0.0001699,2]
[388724418,1759336246564,-1379.028997,0.0001699,2]
[388724419,1759336246574,-1379.028997,0.0001699,2]
[388724420,1759336246583,-1379.028997,0.0001699,2]
[388724421,1759336246592,-1379.028997,0.0001699,2]
[388724422,1759336246603,-209.622644,0.0001699,2]
[388724423,1759336246612,-983.368314,0.0001699,2]
[388724424,1759336246622,-983.368314,0.0001699,2]
[388724425,1759336246631,-151.0,0.0001699,2]